bitfinex-derivatives/quotes_SOLF0:USTF0_20251117
["timestamp","ask_amount","ask_price","bid_price","bid_amount"]
[1763397428317,3.38,134.97,134.89,7.29994196]
[1763397428818,3.43638879,134.94,134.87,7.29994196]
[1763397429017,3.43695051,134.92,134.8,7.29994196]
[1763397429223,0.05320476,134.87,134.83,7.29994196]
[1763397430016,3.43320476,134.87,134.83,7.29994196]
[1763397430218,0.05320476,134.87,134.83,7.29994196]
[1763397430818,3.38,134.95,134.86,7.29994196]
[1763397431913,3.38,134.91,134.89,0.05430465]
[1763397432720,5.43971998,134.87,134.78,7.29994196]
[1763397433019,3.38,134.88,134.78,7.29994196]
[1763397433222,5.43971998,134.87,134.81,7.29994196]
[1763397433419,0.05132939,134.84,134.82,6.6815]
[1763397433624,0.05134004,134.84,134.81,7.29994196]
[1763397433813,0.05134004,134.84,134.81,13.98174196]
[1763397434620,0.05134004,134.84,134.81,7.29994196]
[1763397435225,5.49019934,134.83,134.81,7.29994196]
[1763397435424,0.05134004,134.84,134.81,7.29994196]
[1763397435624,6.56099147,134.89,134.81,7.29994196]
[1763397435826,6.56099147,134.89,134.84,13.98024196]
[1763397436028,6.56099147,134.9,134.84,7.29994196]
[1763397436223,6.56099147,134.91,134.87,7.29994196]
[1763397436724,0.05032958,134.9,134.88,0.05604549]
[1763397436923,6.61132105,134.9,134.88,0.05604549]
[1763397437225,12.25912736,134.9,134.88,0.05604549]
[1763397437425,8.80076541,134.89,134.81,7.29994196]
[1763397437730,6.64824919,134.87,134.81,7.29994196]
[1763397438227,6.64824919,134.89,134.86,7.29994196]
[1763397438618,6.70511062,134.89,134.86,7.29994196]
[1763397439435,6.70511062,134.89,134.87,6.6788]
[1763397439624,0.05686143,134.89,134.87,6.6788]
[1763397439826,6.64824919,134.91,134.86,7.29994196]
[1763397440020,6.64824919,134.91,134.81,29.54994196]
[1763397440021,4.919e-05,134.92,134.89,7.29994196]
[1763397440329,14.17889017,134.95,134.89,7.29994196]
[1763397440520,8.82879778,134.96,134.89,7.29994196]
[1763397440829,0.04842545,134.94,134.91,0.05244202]
[1763397441132,0.04967114,134.94,134.91,0.04974991]
[1763397441927,0.04967114,134.94,134.92,7.29994196]
[1763397442225,0.04967114,134.94,134.92,13.97634196]
[1763397442430,13.24319668,134.99,134.92,8.77994196]
[1763397442431,8.82879778,134.99,134.92,8.77994196]
[1763397442630,8.82879778,134.99,134.95,7.29994196]
[1763397442821,8.82879778,134.99,134.97,6.6739]
[1763397443021,13.24319668,135.01,134.95,7.29994196]
[1763397443022,5.35318612,135.0,134.95,7.29994196]
[1763397443226,8.82879778,135.04,134.98,7.29994196]
[1763397443425,0.05177232,135.02,135.0,0.05474169]
[1763397443630,5.40368404,135.02,135.0,0.05474169]
[1763397443833,0.05091613,135.02,135.0,0.05474169]
[1763397444032,3.47091613,135.02,135.0,0.05474169]
[1763397444240,3.47091613,135.02,134.95,7.29994196]
[1763397444930,3.42,135.01,134.83,103.9206]
[1763397445229,0.05383421,134.93,134.91,7.34983173]
[1763397445432,0.04751469,134.93,134.91,7.34672305]
[1763397445636,3.46751469,134.93,134.91,0.04678109]
[1763397445832,0.04751469,134.93,134.91,0.04678109]
[1763397446026,3.46751469,134.93,134.82,40.24]
[1763397446228,3.42,134.93,134.81,7.29994196]
[1763397446429,3.42,134.92,134.81,7.29994196]
[1763397446830,3.42,134.9,134.8,6.6823]
[1763397447030,0.04702039,134.86,134.8,6.6823]
[1763397447330,5.34206687,134.85,134.78,7.29994196]
[1763397447633,0.04733153,134.83,134.78,7.29994196]
[1763397448030,0.04733153,134.83,134.81,6.6818]
[1763397448234,8.75967601,134.91,134.81,7.29994196]
[1763397448427,5.33967601,134.9,134.81,7.29994196]
[1763397448626,5.33967601,134.89,134.81,7.29994196]
[1763397448837,5.33967601,134.9,134.84,7.29994196]
[1763397449133,3.42,134.95,134.84,7.29994196]
[1763397449438,3.42,134.95,134.81,20.66324196]
[1763397449439,0.05689515,134.91,134.88,0.0467558]
[1763397449636,0.05689515,134.91,134.89,6.6779]
[1763397450032,7.29994196,135.0,134.88,0.0467558]
[1763397450033,8.75967601,134.99,134.88,0.0467558]
[1763397450231,3.42,134.99,134.9,7.29994196]
[1763397451031,3.42,135.03,134.93,7.35068098]
[1763397451237,0.05689966,134.99,134.97,0.05338031]
[1763397451635,0.05689966,134.99,134.93,7.29994196]
[1763397451636,3.47689966,134.99,134.9,7.29994196]
[1763397451939,3.42,134.99,134.9,7.29994196]
[1763397452734,0.05678586,134.96,134.93,6.72436062]
[1763397453236,3.25678586,134.96,134.93,0.04846062]
[1763397455038,0.05678586,134.96,134.93,0.04846062]
[1763397456936,0.05678586,134.96,134.94,6.6753]
[1763397457838,3.2,135.04,134.93,0.04846062]
[1763397458036,3.2,135.04,134.92,11.48013914]
[1763397458243,3.2,135.04,134.95,11.48013914]
[1763397458937,0.04872058,135.01,135.0,6.6724]
[1763397459136,0.04872058,135.01,134.98,0.05645764]
[1763397459741,3.24872058,135.01,134.98,0.05645764]
[1763397459943,0.04872058,135.01,134.98,0.05645764]
[1763397460548,0.04872058,135.01,134.98,6.72975764]
[1763397461047,3.24872058,135.01,134.98,0.05645764]
[1763397463150,3.24872058,135.01,134.84,126.1666]
[1763397463151,3.2,134.99,134.86,11.48013914]
[1763397464050,5.33967601,135.04,134.86,11.48013914]
[1763397464051,0.04819035,134.94,134.91,0.05593218]
[1763397464246,0.05446186,134.94,134.91,1.52797603]
[1763397464546,0.05446186,134.94,134.92,6.6766]
[1763397464947,0.05446186,134.94,134.91,0.04797603]
[1763397464948,3.2,135.03,134.91,0.04797603]
[1763397465148,3.2,135.03,134.89,33.73013914]
[1763397465149,3.2,135.03,134.89,11.48013914]
[1763397465742,3.2,135.03,134.92,6.6763]
[1763397465943,0.05285139,134.99,134.96,0.05345887]
[1763397466850,3.25285139,134.99,134.96,0.05345887]
[1763397469052,0.05285139,134.99,134.96,0.05345887]
[1763397469844,3.2,135.07,134.97,6.674]
[1763397470050,3.2,135.07,134.95,11.48013914]
[1763397470252,3.2,135.07,134.95,51.68013914]
[1763397470454,3.2,135.07,134.95,11.48013914]
[1763397471049,0.04690122,135.02,135.0,6.7223661]
[1763397471254,0.05097948,135.02,135.0,6.7223661]
[1763397472056,0.05097948,135.02,135.0,0.0498661]
[1763397472354,3.25097948,135.02,135.0,0.0498661]
[1763397476855,0.05097948,135.02,135.0,0.0498661]
[1763397477059,0.05097948,135.02,135.0,6.7223661]
[1763397477360,3.2,135.07,135.0,0.0498661]
[1763397478248,0.04833415,135.05,135.0,0.0498661]
[1763397478451,3.2,135.09,135.01,0.05528366]
[1763397478653,3.2,135.06,135.04,0.05325503]
[1763397478958,3.25116897,135.05,135.04,0.04947498]
[1763397479157,3.2,135.05,135.03,0.05205003]
[1763397479858,0.04928111,135.06,135.03,0.05205003]
[1763397480762,3.2,135.12,135.03,0.05205003]
[1763397481058,3.2,135.12,135.01,11.48013914]
[1763397481059,3.2,135.16,135.04,11.48013914]
[1763397481261,3.2,135.16,135.07,11.48013914]
[1763397481865,0.05318735,135.13,135.1,0.05626459]
[1763397482165,0.05318735,135.13,135.11,6.667]
[1763397482460,3.47318735,135.13,135.1,0.05626459]
[1763397482652,3.47318735,135.13,135.05,6.67]
[1763397482852,3.42,135.13,135.01,11.48013914]
[1763397483052,11.48013914,135.17,134.98,11.48013914]
[1763397483053,3.42,135.11,134.98,11.48013914]
[1763397483266,3.42,135.1,134.98,11.48013914]
[1763397483663,3.42,135.04,134.95,51.66013914]
[1763397483858,3.42,135.04,134.95,40.18]
[1763397484260,3.42,135.02,134.87,100.40013914]
[1763397484457,3.42,135.0,134.87,100.40013914]
[1763397484763,0.05058686,134.95,134.92,0.05579954]
[1763397485156,0.05058686,134.95,134.92,6.73209954]
[1763397485661,0.05058686,134.95,134.92,0.05579954]
[1763397485863,3.47058686,134.95,134.92,0.05579954]
[1763397487963,0.05058686,134.95,134.92,0.05579954]
[1763397488366,5.37140566,135.01,134.93,6.6756]
[1763397488566,3.42,135.01,134.93,6.6756]
[1763397488870,3.42,135.01,134.94,6.6753]
[1763397489056,3.42,135.04,134.92,11.48013914]
[1763397489264,3.42,135.07,134.95,11.48013914]
[1763397489466,0.05172307,135.02,135.0,6.72717622]
[1763397489668,0.05222732,135.02,135.0,6.72717622]
[1763397490067,0.05222732,135.02,135.0,0.05477622]
[1763397490568,3.47222732,135.02,135.0,0.05477622]
[1763397490969,3.47222732,135.02,134.92,11.48013914]
[1763397491169,3.42,135.02,134.91,51.66013914]
[1763397491669,5.37140566,135.06,134.98,6.6733]
[1763397491872,3.42,135.06,134.87,165.8944]
[1763397492062,3.42,135.08,134.96,11.48013914]
[1763397492470,0.04941299,135.03,135.01,0.04724196]
[1763397492775,0.05413014,135.03,135.01,0.04724196]
[1763397493570,0.05413014,135.03,135.01,6.71904196]
[1763397494167,0.05413014,135.03,135.01,0.04724196]
[1763397494874,0.05413014,135.03,135.01,6.71914196]
[1763397497575,3.42,135.08,135.03,6.6707]
[1763397497779,3.42,135.08,134.99,11.48013914]
[1763397497978,3.23,135.13,134.99,11.48013914]
[1763397498276,3.23,135.13,135.02,11.48013914]
[1763397498672,0.05064708,135.09,135.06,0.04858781]
[1763397498873,0.05064708,135.09,135.06,6.71788781]
[1763397499068,0.05064708,135.09,135.06,0.04858781]
[1763397499474,0.05064708,135.09,135.06,6.71808781]
[1763397499667,0.05064708,135.09,135.06,0.04858781]
[1763397499871,3.28064708,135.09,135.06,0.04858781]
[1763397501767,0.05064708,135.09,135.06,0.04858781]
[1763397502575,0.05064708,135.09,135.07,6.6689]
[1763397503278,3.23,135.19,135.14,6.6657]
[1763397503486,5.35974045,135.21,135.1,11.48013914]
[1763397503676,3.23,135.23,135.07,166.1504]
[1763397503677,3.23,135.23,135.13,11.48013914]
[1763397504378,3.28438784,135.19,135.17,0.05384814]
[1763397504681,3.27903494,135.19,135.17,0.05472737]
[1763397505077,3.27903494,135.19,135.08,11.48013914]
[1763397505281,3.23,135.19,135.01,13.3441]
[1763397505480,3.23,135.19,135.06,11.48013914]
[1763397505683,3.23,135.19,135.1,6.6675]
[1763397505875,3.23,135.19,135.06,11.48013914]
[1763397506076,3.23,135.19,135.04,21.88216105]
[1763397506272,3.23,135.19,135.0,40.14]
[1763397506273,3.23,135.17,135.0,40.14]
[1763397506476,3.23,135.17,134.97,11.48013914]
[1763397506477,3.23,135.09,134.97,11.48013914]
[1763397507183,3.23,135.09,134.96,40.14]
[1763397507184,3.23,135.09,135.0,11.48013914]
[1763397507383,3.23,135.09,135.02,6.6715]
[1763397507581,0.05569687,135.07,135.04,0.05323652]
[1763397508179,0.05569687,135.07,135.05,6.67]
[1763397508378,3.23,135.13,135.04,0.05323652]
[1763397508581,3.23,135.13,135.07,6.669]
[1763397509084,3.23,135.13,135.03,11.48013914]
[1763397509485,0.04749428,135.09,135.07,0.04821266]
[1763397509787,0.04749428,135.09,135.07,6.71721266]
[1763397510382,0.04749428,135.09,135.07,8.19721266]
[1763397510682,3.23,135.17,135.07,8.19721266]
[1763397510683,3.23,135.21,135.09,13.3364]
[1763397510880,3.23,135.21,135.12,11.48013914]
[1763397511284,3.23,135.21,135.15,11.48013914]
[1763397511486,0.05180226,135.19,135.17,0.05410225]
[1763397511687,0.05254921,135.19,135.17,6.71716511]
[1763397512781,0.05254921,135.19,135.17,0.05316511]
[1763397514079,3.29254921,135.19,135.17,0.05316511]
[1763397514485,4.72,135.18,135.11,6.6669]
[1763397514684,3.24,135.18,135.11,6.6669]
[1763397514884,3.24,135.18,135.11,7.30547661]
[1763397515386,0.04965788,135.16,135.13,0.0528911]
[1763397515886,0.04965788,135.16,135.15,7.30547661]
[1763397516189,3.24,135.22,135.15,7.30547661]
[1763397516594,3.24,135.22,135.17,6.664]
[1763397517385,0.04876883,135.21,135.18,0.05096682]
[1763397517586,0.04876883,135.21,135.18,6.71456682]
[1763397517783,0.04876883,135.21,135.18,14.02004343]
[1763397518086,3.24,135.29,135.18,7.35644343]
[1763397518282,3.24,135.34,135.22,7.30547661]
[1763397518892,3.24,135.34,135.25,7.30547661]
[1763397519087,3.24,135.34,135.26,6.6596]
[1763397519281,3.24,135.34,135.25,7.30547661]
[1763397519483,3.24,135.34,135.21,21.77476103]
[1763397519484,0.04731129,135.31,135.29,0.05666363]
[1763397519686,3.24,135.38,135.28,7.30547661]
[1763397519883,0.04781626,135.34,135.31,7.30547661]
[1763397520097,0.04781626,135.34,135.31,7.35245913]
[1763397520697,3.28781626,135.34,135.31,0.04698252]
[1763397520883,3.28781626,135.34,135.28,7.30547661]
[1763397521191,3.28781626,135.34,135.25,7.30547661]
[1763397521497,3.28781626,135.34,135.22,7.30547661]
[1763397521498,3.24,135.34,135.22,7.30547661]
[1763397521894,3.28982397,135.29,135.27,0.04669069]
[1763397522095,3.2922984,135.29,135.27,0.04860282]
[1763397522396,0.0522984,135.29,135.27,0.04860282]
[1763397522596,3.2922984,135.29,135.27,0.04860282]
[1763397523194,3.24,135.28,135.22,7.30547661]
[1763397523493,0.0522984,135.29,135.22,7.30547661]
[1763397523691,0.0522984,135.29,135.24,6.6605]
[1763397523891,3.2922984,135.29,135.24,6.6605]
[1763397524099,3.2922984,135.29,135.25,0.05122633]
[1763397524299,0.0522984,135.29,135.25,0.05122633]
[1763397524498,3.2922984,135.29,135.25,0.05122633]
[1763397525194,3.2922984,135.29,135.16,128.9]
[1763397525195,3.24,135.28,135.19,7.30547661]
[1763397526095,3.29590234,135.25,135.22,0.05210134]
[1763397526295,3.29119773,135.25,135.22,0.04712591]
[1763397526690,0.05119773,135.25,135.22,0.04712591]
[1763397526897,0.05119773,135.25,135.22,7.35260252]
[1763397527389,0.05119773,135.25,135.23,6.661]
[1763397527795,0.05119773,135.25,135.22,7.35260252]
[1763397527992,3.29119773,135.25,135.22,0.04712591]
[1763397528195,3.29119773,135.25,135.16,7.30547661]
[1763397528401,3.29119773,135.25,135.15,7.30547661]
[1763397528402,3.24,135.25,135.15,7.30547661]
[1763397529100,3.24,135.28,135.22,7.30547661]
[1763397529294,0.05027318,135.26,135.25,7.30547661]
[1763397529497,3.24,135.33,135.26,6.6594]
[1763397529696,3.24,135.33,135.29,7.30547661]
[1763397530502,3.29612972,135.32,135.3,0.05045985]
[1763397530802,3.24,135.32,135.23,7.30547661]
[1763397531300,3.24,135.32,135.22,7.30547661]
[1763397531497,3.24,135.31,135.22,7.30547661]
[1763397531702,3.24,135.27,135.25,0.0537439]
[1763397531896,3.29569382,135.27,135.25,0.05502404]
[1763397532603,3.29569382,135.27,135.25,7.36050065]
[1763397532604,0.05569382,135.27,135.25,7.36050065]
[1763397533106,3.29569382,135.27,135.25,7.36050065]
[1763397533301,3.29569382,135.27,135.25,0.05502404]
[1763397534608,0.05569382,135.27,135.25,0.05502404]
[1763397534801,3.29569382,135.27,135.25,0.05502404]
[1763397536497,8.74708029,135.27,135.25,0.05502404]
[1763397536699,3.29569382,135.27,135.25,0.05502404]
[1763397537312,8.74708029,135.27,135.25,0.05502404]
[1763397537506,3.29569382,135.27,135.25,0.05502404]
[1763397539005,8.69138647,135.26,135.25,0.05502404]
[1763397539802,3.29569382,135.27,135.25,0.05502404]
[1763397540007,0.05569382,135.27,135.25,0.05502404]
[1763397540199,3.29569382,135.27,135.25,0.05502404]
[1763397540396,3.24,135.25,135.12,7.30547661]
[1763397540608,3.24,135.23,135.18,7.30547661]
[1763397540806,3.24,135.21,135.18,7.30547661]
[1763397541012,5.48092524,135.23,135.19,6.663]
[1763397541311,5.48895997,135.24,135.21,7.30547661]
[1763397541615,3.24,135.25,135.21,7.30547661]
[1763397541808,8.78264692,135.24,135.21,7.35236417]
[1763397542009,3.24,135.22,135.21,0.04688756]
[1763397542311,3.24,135.21,135.15,7.30547661]
[1763397542516,3.24,135.19,135.12,7.30547661]
[1763397542810,5.48905462,135.18,135.12,7.30547661]
[1763397543008,8.68905462,135.17,135.12,7.30547661]
[1763397543206,5.54503474,135.16,135.12,7.30547661]
[1763397543407,5.48905462,135.15,135.13,6.6661]
[1763397543617,0.05598012,135.16,135.12,7.30547661]
[1763397543618,3.25598012,135.16,135.12,7.30547661]
[1763397543814,5.49078986,135.15,135.12,7.30547661]
[1763397544012,0.05598012,135.16,135.09,7.30547661]
[1763397544223,5.4985447,135.18,135.12,7.30547661]
[1763397544410,6.58733426,135.23,135.15,7.30547661]
[1763397544604,3.2,135.23,135.19,6.663]
[1763397544807,6.58733426,135.26,135.19,6.663]
[1763397545008,3.2,135.25,135.17,6.6639]
[1763397545318,3.25330845,135.22,135.2,0.0514056]
[1763397546213,0.05330845,135.22,135.2,0.0514056]
[1763397546713,9.78733426,135.3,135.2,1.5314056]
[1763397547013,3.2,135.28,135.18,7.30547661]
[1763397547215,3.2,135.27,135.18,7.30547661]
[1763397547420,3.2,135.27,135.21,6.6621]
[1763397547712,3.25153729,135.25,135.23,0.05656108]
[1763397548610,3.25153729,135.25,135.11,103.7085]
[1763397548611,3.25153729,135.25,135.15,7.30547661]
[1763397548805,3.2,135.24,135.15,7.30547661]
[1763397549014,3.2,135.24,135.18,6.6636]
[1763397549215,3.2,135.24,135.15,7.30547661]
[1763397549613,3.25084842,135.21,135.18,0.04695524]
[1763397550516,0.05084842,135.21,135.18,0.04695524]
[1763397551022,0.05084842,135.21,135.19,6.6631]
[1763397551217,0.05084842,135.21,135.18,0.04695524]
[1763397551613,0.05084842,135.21,135.18,6.71055524]
[1763397552614,0.05084842,135.21,135.19,6.6631]
[1763397554624,0.05084842,135.21,135.2,7.30547661]
[1763397554917,6.58733426,135.28,135.2,7.30547661]
[1763397555124,9.78733426,135.3,135.2,7.30547661]
[1763397555322,9.78733426,135.29,135.2,7.30547661]
[1763397555826,0.04783912,135.26,135.23,0.05038732]
[1763397556230,5.51678474,135.25,135.23,0.05038732]
[1763397556416,0.04783912,135.26,135.23,0.05038732]
[1763397557014,0.04783912,135.26,135.24,6.6607]
[1763397557424,5.51943366,135.3,135.23,7.35586393]
[1763397557730,3.24,135.33,135.28,6.6586]
[1763397557921,5.51965935,135.32,135.26,7.30547661]
[1763397558230,5.51965935,135.31,135.26,7.30547661]
[1763397558532,5.56646654,135.3,135.28,0.05299751]
[1763397558825,5.50405617,135.33,135.29,7.30547661]
[1763397559015,6.58733426,135.4,135.32,7.30547661]
[1763397559215,3.24,135.4,135.35,7.30547661]
[1763397559520,6.58733426,135.41,135.35,7.30547661]
[1763397559720,9.82733426,135.44,135.35,7.30547661]
[1763397560027,0.04843824,135.41,135.38,0.05600147]
[1763397560217,3.28843824,135.41,135.38,0.05600147]
[1763397560414,3.24,135.4,135.28,6.6587]
[1763397560614,9.82733426,135.41,135.33,7.30547661]
[1763397560814,3.24,135.4,135.31,7.30547661]
[1763397561022,3.24,135.39,135.31,7.30547661]
[1763397561222,9.82733426,135.38,135.26,7.30547661]
[1763397561432,3.24,135.37,135.31,0.05508222]
[1763397561614,9.82733426,135.37,135.31,0.05508222]
[1763397561817,3.24,135.34,135.31,0.05508222]
[1763397562014,0.05129024,135.35,135.31,0.05508222]
[1763397562428,0.05129024,135.35,135.31,6.71208222]
[1763397562723,0.05129024,135.35,135.31,0.05508222]
[1763397562926,3.29129024,135.35,135.31,6.71218222]
[1763397563228,0.05129024,135.35,135.31,6.71218222]
[1763397563425,0.05129024,135.35,135.31,0.05508222]
[1763397563927,7.30547661,135.45,135.31,0.05508222]
[1763397563928,4.966e-05,135.47,135.33,139.1022]
[1763397564126,3.24,135.5,135.39,7.30547661]
[1763397564429,3.24,135.54,135.42,7.30547661]
[1763397564730,3.24,135.54,135.43,7.30547661]
[1763397565126,0.0503225,135.5,135.47,0.05101636]
[1763397565627,0.0503225,135.5,135.48,13.95417661]
[1763397565825,0.0503225,135.5,135.48,6.6487]
[1763397566231,0.0503225,135.5,135.48,7.30547661]
[1763397566532,0.0503225,135.5,135.47,0.05101636]
[1763397570216,12.0831978,135.64,135.48,7.30547661]
[1763397570434,3.24,135.64,135.57,6.6441]
[1763397570729,3.24,135.64,135.56,7.30547661]
[1763397571032,3.24,135.68,135.6,6.6429]
[1763397571229,3.29038244,135.65,135.63,0.05231307]
[1763397571432,3.29318587,135.65,135.63,0.05231307]
[1763397572333,0.05318587,135.65,135.63,0.05231307]
[1763397573730,4.68,135.64,135.56,7.30547661]
[1763397573934,3.2,135.64,135.53,7.30547661]
[1763397574729,3.2,135.64,135.57,0.05355245]
[1763397574730,0.0488741,135.6,135.57,0.05355245]
[1763397574927,0.0488741,135.6,135.59,6.6436]
[1763397575735,0.0488741,135.6,135.59,13.94907661]
[1763397576039,3.2,135.69,135.61,7.30547661]
[1763397576839,3.2,135.65,135.56,11.36771011]
[1763397577039,3.2,135.65,135.53,11.36771011]
[1763397577927,0.05344876,135.6,135.58,0.05526868]
[1763397578133,0.04776372,135.6,135.58,0.05526868]
[1763397580036,3.24776372,135.6,135.58,0.05526868]
[1763397580441,0.04776372,135.6,135.58,0.05526868]
[1763397580839,3.24776372,135.6,135.58,0.05526868]
[1763397581042,3.24776372,135.6,135.5,11.36771011]
[1763397581338,3.2,135.6,135.55,6.6453]
[1763397581538,3.2,135.68,135.53,11.36771011]
[1763397582045,3.25055951,135.62,135.59,0.05605247]
[1763397582341,0.05029336,135.62,135.59,0.05324154]
[1763397582642,0.05029336,135.62,135.59,6.69654154]
[1763397582835,3.25029336,135.62,135.59,0.05324154]
[1763397583339,3.25029336,135.62,135.49,35.13528881]
[1763397583340,3.25029336,135.62,135.5,11.36771011]
[1763397583541,3.2,135.61,135.5,11.36771011]
[1763397583737,3.2,135.61,135.51,6.6473]
[1763397583929,3.2,135.61,135.5,11.36771011]
[1763397584336,3.2,135.61,135.54,0.05453693]
[1763397584544,3.25414758,135.57,135.54,0.05453693]
[1763397584742,3.25667413,135.57,135.54,0.05651126]
[1763397585041,0.05667413,135.57,135.54,6.70211126]
[1763397585441,0.05667413,135.57,135.54,0.05651126]
[1763397586738,0.05667413,135.57,135.55,6.6453]
[1763397587635,0.05667413,135.57,135.54,0.05651126]
[1763397587840,3.25667413,135.57,135.54,0.05651126]
[1763397588040,0.05667413,135.57,135.54,0.05651126]
[1763397589243,0.05667413,135.57,135.55,6.6453]
[1763397589439,11.36771011,135.69,135.54,0.05651126]
[1763397589440,3.2,135.64,135.54,0.05651126]
[1763397589646,3.2,135.64,135.53,11.36771011]
[1763397590550,0.05206823,135.6,135.57,0.0530157]
[1763397591552,0.05206823,135.6,135.58,6.6439]
[1763397591847,0.05206823,135.6,135.57,0.0530157]
[1763397592344,0.05206823,135.6,135.58,6.6439]
[1763397592744,3.25206823,135.6,135.57,0.0530157]
[1763397593345,0.05206823,135.6,135.57,0.0530157]
[1763397594153,3.25206823,135.6,135.57,0.0530157]
[1763397594347,0.05206823,135.6,135.58,6.6437]
[1763397597648,0.00206823,135.6,135.58,6.6437]
[1763397597850,446.8431978,135.78,135.59,52.76771011]
[1763397598042,3.2,135.73,135.66,11.36771011]
[1763397598245,24.63250681,135.82,135.69,11.36771011]
[1763397598246,3.2,135.77,135.69,11.36771011]
[1763397598455,3.2,135.8,135.72,11.36771011]
[1763397598849,0.05206444,135.77,135.75,0.05373364]
[1763397599156,3.25206444,135.77,135.69,11.36771011]
[1763397599349,3.2,135.77,135.69,11.36771011]
[1763397600049,0.0546803,135.74,135.72,0.05300755]
[1763397600248,0.0546803,135.74,135.66,11.36771011]
[1763397600249,3.2546803,135.74,135.63,11.36771011]
[1763397600451,5.41456403,135.78,135.67,11.36771011]
[1763397600751,3.2,135.78,135.67,11.36771011]
[1763397600948,3.2,135.78,135.7,11.36771011]
[1763397601344,0.05526734,135.75,135.73,0.05565108]
[1763397601561,3.2,135.82,135.73,12.84771011]
[1763397601756,3.2,135.8,135.71,11.36771011]
[1763397601953,3.2,135.78,135.69,11.36771011]
[1763397602252,35.12519789,135.87,135.69,33.18048038]
[1763397602253,5.41456403,135.77,135.69,33.18048038]
[1763397602456,5.40285507,135.8,135.75,11.36771011]
[1763397602655,3.2,135.85,135.75,11.36771011]
[1763397602855,0.05356011,135.79,135.76,0.05184282]
[1763397603051,0.05229702,135.79,135.76,0.04807687]
[1763397603748,0.05229702,135.79,135.77,6.6345]
[1763397603954,3.35229702,135.79,135.76,0.04807687]
[1763397606057,0.05229702,135.79,135.76,0.04807687]
[1763397606358,3.35229702,135.79,135.76,0.04807687]
[1763397606561,0.05229702,135.79,135.76,0.04807687]
[1763397606956,3.35229702,135.79,135.76,0.04807687]
[1763397608260,3.35229702,135.79,135.69,11.36771011]
[1763397608454,3.3,135.76,135.66,51.24771011]
[1763397608659,3.3,135.73,135.63,11.36771011]
[1763397608859,3.3,135.7,135.6,11.36771011]
[1763397609055,3.3,135.69,135.6,6.6429]
[1763397609256,3.3,135.67,135.55,39.88]
[1763397609463,3.3,135.65,135.6,0.05104558]
[1763397609857,0.04935416,135.64,135.6,0.05104558]
[1763397610160,3.34935416,135.64,135.6,0.05104558]
[1763397611858,0.04935416,135.64,135.6,0.05104558]
[1763397612062,3.34935416,135.64,135.6,0.05104558]
[1763397612264,0.04935416,135.64,135.6,0.05104558]
[1763397612565,0.04935416,135.64,135.62,6.6418]
[1763397613968,3.3,135.72,135.63,1.48]
[1763397614162,3.3,135.72,135.62,11.36771011]
[1763397614359,5.40878881,135.71,135.62,11.36771011]
[1763397614560,5.40878881,135.7,135.62,11.36771011]
[1763397614865,0.04849568,135.67,135.65,0.04685033]
[1763397615067,0.05120533,135.67,135.66,6.6399]
[1763397615270,5.41120656,135.73,135.65,11.42204142]
[1763397615467,5.41120656,135.72,135.69,6.6384]
[1763397615654,5.41293323,135.77,135.68,11.36771011]
[1763397615859,5.41293323,135.76,135.71,11.36771011]
[1763397616166,3.3,135.81,135.71,11.36771011]
[1763397616358,0.048938,135.75,135.74,11.36771011]
[1763397616558,3.3,135.84,135.77,6.6347]
[1763397616753,5.40972678,135.83,135.77,6.6347]
[1763397616959,8.70972678,135.82,135.77,6.6347]
[1763397617267,8.70972678,135.82,135.66,125.4189]
[1763397617268,3.23,135.8,135.71,11.36771011]
[1763397617470,0.05340763,135.77,135.74,0.04765633]
[1763397617766,0.05065258,135.77,135.76,6.635]
[1763397617968,5.4057768,135.83,135.74,11.41801689]
[1763397618169,5.4057768,135.83,135.77,11.36771011]
[1763397618361,5.40183124,135.87,135.77,11.36771011]
[1763397618568,5.40183124,135.86,135.82,6.6319]
[1763397618767,5.40183124,135.9,135.8,11.36771011]
[1763397619067,5.40183124,135.89,135.8,11.36771011]
[1763397619261,0.05289144,135.86,135.84,0.05644857]
[1763397619465,5.40183124,135.92,135.83,11.36771011]
[1763397619762,5.40183124,135.91,135.85,6.6309]
[1763397619970,5.40580578,135.96,135.89,11.36771011]
[1763397620269,3.23,136.0,135.91,6.68241551]
[1763397620468,3.23,136.04,135.92,51.24771011]
[1763397620767,0.05099821,135.97,135.94,0.05087043]
[1763397620970,3.23,136.0,135.92,17.99511011]
[1763397621168,0.05244947,135.97,135.94,0.05662942]